[Event "12th Tamil Nadu Circuit-IM 2024"]
[Site "Chennai"]
[Date "2024.01.10"]
[Round "3.2"]
[White "Pradeep Kumar R A"]
[Black "Prasannaa.s"]
[Result "1-0"]
[ECO "A20"]
[WhiteElo "2189"]
[BlackElo "2213"]
[Annotator "RC"]
[PlyCount "77"]
[EventDate "2024.01.09"]
[EventType "tourn"]
[EventCountry "IND"]
[SourceTitle "playchess.com"]
[Source "ChessBase"]
[SourceQuality "1"]
[TimeControl "5400+30"]

1. g3 {[%emt 0:00:16]} e5 {[%emt 0:08:05]} 2. c4 {[%emt 0:00:18]} Nf6 {[%emt 0:00:07]} 3. Bg2 {[%emt 0:00:13]} c6 {[%emt 0:00:08]} 4. d4 {[%emt 0:05:30]} e4 {[%emt 0:00:13]} 5. Nh3 {[%emt 0:01:32]} d5 {[%emt 0:00:32]} 6. cxd5 {[%emt 0:00:13]} cxd5 {[%emt 0:00:03]} 7. O-O {[%emt 0:00:06]} h6 {[%emt 0:06:52]} 8. f3 {[%emt 0:00:52]} exf3 {[%emt 0:03:54]} 9. Rxf3 {[%emt 0:00:06]} Bxh3 {[%emt 0:10:40]} 10. Bxh3 {[%emt 0:00:07]} Nc6 {[%emt 0:01:06]} 11. Nc3 {[%emt 0:11:59]} Be7 {[%emt 0:11:15]} 12. Rf5 {[%emt 0:09:52]} O-O {[%emt 0:01:10]} 13. a3 {[%emt 0:04:16]} Qb6 {[%emt 0:02:34]} 14. e3 {[%emt 0:03:37]} Rad8 {[%emt 0:00:20]} 15. b4 {[%emt 0:12:13]} g6 {[%emt 0:03:26]} 16. Rf2 {[%emt 0:02:15]} Ne4 {[%emt 0:09:10]} 17. Nxe4 {[%emt 0:00:08]} dxe4 {[%emt 0:00:03]} 18. Qb3 {[%emt 0:01:17]} a5 {[%emt 0:05:52]} 19. b5 {[%emt 0:16:49]} Na7 {[%emt 0:00:22]} 20. a4 {[%emt 0:01:07]} Kg7 {[%emt 0:00:47]} 21. Bb2 {[%emt 0:02:59]} f5 {[%emt 0:03:25]} 22. Raf1 {[%emt 0:01:17]} h5 {[%emt 0:00:53]} 23. Bg2 {[%emt 0:03:05]} Nc8 {[%emt 0:03:13]} 24. Rc1 {[%emt 0:00:17]} Bf6 {[%emt 0:01:31]} 25. Ba3 {[%emt 0:04:07]} Nd6 {[%emt 0:02:24]} 26. Rfc2 {[%emt 0:00:51]} Rd7 {[%emt 0:00:08]} 27. Qe6 {[%emt 0:00:27]} Qd8 {[%emt 0:08:17]} 28. b6 {[%emt 0:02:20]} Re8 {[%emt 0:02:36]} 29. Qxd7+ {[%emt 0:01:01]} Qxd7 {[%emt 0:00:01]} 30. Rc7 {[%emt 0:00:06]} Re7 {[%emt 0:00:17]} 31. Rxd7 {[%emt 0:00:16]} Rxd7 {[%emt 0:00:02]} 32. Rc7 Rxc7 {[%emt 0:01:33]} 33. bxc7 {[%emt 0:00:08]} Nc8 {[%emt 0:00:04]} 34. Bf1 {[%emt 0:01:08]} Bg5 {[%emt 0:00:02]} 35. Kf2 {[%emt 0:00:08]} Kf6 {[%emt 0:02:44]} 36. d5 {[%emt 0:00:30]} Bh6 {[%emt 0:02:17]} 37. d6 {[%emt 0:00:16]} Ke6 {[%emt 0:00:25]} 38. Bc4+ {[%emt 0:00:06]} Kd7 {[%emt 0:00:06]} 39. Bb5+ {[%emt 0:00:03]} 1-0

[Event "12th Tamil Nadu Circuit-IM 2024"]
[Site "Chennai"]
[Date "2024.01.10"]
[Round "3.3"]
[White "Buscara, Sevan"]
[Black "Mamombe, Kudzanai"]
[Result "1-0"]
[ECO "D02"]
[WhiteElo "2359"]
[BlackElo "1797"]
[Annotator "RC"]
[PlyCount "63"]
[EventDate "2024.01.09"]
[EventType "tourn"]
[EventCountry "IND"]
[SourceTitle "playchess.com"]
[Source "ChessBase"]
[SourceQuality "1"]
[TimeControl "5400+30"]

1. d4 {[%emt 0:00:05]} d5 {[%emt 0:00:59]} 2. Nf3 {[%emt 0:00:15]} Nf6 {[%emt 0:00:07]} 3. Bf4 {[%emt 0:00:04]} e6 {[%emt 0:03:48]} 4. e3 {[%emt 0:00:08]} c5 {[%emt 0:01:13]} 5. Nbd2 {[%emt 0:00:11]} Nc6 {[%emt 0:01:43]} 6. c3 {[%emt 0:00:33]} Bd6 {[%emt 0:02:01]} 7. Bg3 {[%emt 0:00:08]} O-O {[%emt 0:01:53]} 8. Bd3 {[%emt 0:00:04]} cxd4 {[%emt 0:03:56]} 9. exd4 {[%emt 0:00:25]} Ne7 {[%emt 0:04:47]} 10. Ne5 {[%emt 0:01:48]} Re8 {[%emt 0:04:30]} 11. f4 {[%emt 0:02:14]} a6 {[%emt 0:12:34]} 12. O-O {[%emt 0:01:43]} Nf5 {[%emt 0:00:54]} 13. Bf2 {[%emt 0:00:44]} h5 {[%emt 0:01:41]} 14. h3 {[%emt 0:04:24]} g6 {[%emt 0:07:17]} 15. g4 {[%emt 0:00:42]} Ng7 {[%emt 0:01:13]} 16. Qe2 {[%emt 0:03:51]} Bd7 {[%emt 0:02:17]} 17. Ndf3 {[%emt 0:02:26]} Rf8 {[%emt 0:03:23]} 18. Ng5 {[%emt 0:00:46]} Be8 {[%emt 0:02:18]} 19. Be3 {[%emt 0:04:10]} Rc8 {[%emt 0:02:04]} 20. Rf2 {[%emt 0:00:17]} Nd7 {[%emt 0:10:56]} 21. gxh5 {[%emt 0:04:02]} Nxh5 {[%emt 0:02:37]} 22. Rg2 {[%emt 0:00:45]} Ng7 {[%emt 0:05:04]} 23. Qg4 {[%emt 0:05:02]} Nf6 {[%emt 0:05:36]} 24. Qh4 {[%emt 0:01:23]} Nfh5 {[%emt 0:00:24]} 25. Rf1 {[%emt 0:03:25]} Be7 {[%emt 0:00:55]} 26. f5 {[%emt 0:05:13]} exf5 {[%emt 0:02:16]} 27. Be2 {[%emt 0:03:14]} b5 {[%emt 0:05:10]} 28. Bxh5 {[%emt 0:01:44]} Nxh5 {[%emt 0:01:30]} 29. Rxf5 {[%emt 0:00:49]} Bxg5 {[%emt 0:04:57]} 30. Bxg5 {[%emt 0:01:20]} Qd6 {[%emt 0:01:02]} 31. Qxh5 {[%emt 0:00:56]} f6 {[%emt 0:03:38]} 32. Nxg6 {[%emt 0:00:18]} 1-0

[Event "12th Tamil Nadu Circuit-IM 2024"]
[Site "Chennai"]
[Date "2024.01.10"]
[Round "3.4"]
[White "Touzane, Olivier"]
[Black "Raghav V"]
[Result "1-0"]
[ECO "A47"]
[WhiteElo "2242"]
[BlackElo "2150"]
[Annotator "TA"]
[PlyCount "89"]
[EventDate "2024.01.09"]
[EventType "tourn"]
[EventCountry "IND"]
[SourceTitle "playchess.com"]
[Source "ChessBase"]
[SourceQuality "1"]
[TimeControl "5400+30"]

1. d4 {[%emt 0:00:03]} Nf6 {[%emt 0:00:08]} 2. Bf4 {[%emt 0:00:30]} e6 {[%emt 0:00:52]} 3. e3 {[%emt 0:00:44]} b6 {[%emt 0:00:07]} 4. Nf3 {[%emt 0:01:00]} Bb7 {[%emt 0:00:09]} 5. Nbd2 {[%emt 0:00:59]} g6 {[%emt 0:09:45]} 6. Bd3 {[%emt 0:06:25]} Bg7 {[%emt 0:00:40]} 7. e4 {[%emt 0:01:40]} d6 {[%emt 0:02:13]} 8. O-O {[%emt 0:01:26]} Nh5 {[%emt 0:05:15]} 9. Bg5 {[%emt 0:02:14]} f6 {[%emt 0:00:43]} 10. Be3 {[%emt 0:00:22]} e5 {[%emt 0:03:31]} 11. dxe5 {[%emt 0:06:45]} dxe5 {[%emt 0:04:35]} 12. Bc4 {[%emt 0:01:45]} Nc6 {[%emt 0:02:02]} 13. c3 {[%emt 0:02:22]} Qe7 {[%emt 0:11:36]} 14. b4 {[%emt 0:02:16]} O-O-O {[%emt 0:03:18]} 15. Qb3 {[%emt 0:01:35]} Kb8 {[%emt 0:10:45]} 16. a4 {[%emt 0:02:18]} f5 {[%emt 0:02:24]} 17. Bg5 {[%emt 0:01:27]} Bf6 {[%emt 0:00:42]} 18. Bh6 {[%emt 0:00:07]} f4 {[%emt 0:10:14]} 19. a5 {[%emt 0:01:01]} g5 {[%emt 0:02:51]} 20. h3 {[%emt 0:00:14]} Rd6 {[%emt 0:07:06]} 21. Bd5 {[%emt 0:02:27]} Bg7 {[%emt 0:07:04]} 22. Bxg5 {[%emt 0:05:50]} Bf6 {[%emt 0:00:01]} 23. Bf7 {[%emt 0:03:51]} Bxg5 {[%emt 0:01:40]} 24. Bxh5 {[%emt 0:00:08]} Bf6 {[%emt 0:02:08]} 25. axb6 {[%emt 0:01:00]} cxb6 {[%emt 0:01:26]} 26. Qf7 {[%emt 0:07:24]} Rd3 {[%emt 0:02:48]} 27. Rfc1 Rc8 {[%emt 0:04:31]} 28. Qa2 {[%emt 0:05:56]} Qg7 {[%emt 0:01:31]} 29. Bf7 {[%emt 0:03:32]} Rd6 {[%emt 0:03:01]} 30. Nc4 {[%emt 0:01:28]} Rd3 {[%emt 0:01:49]} 31. Ne1 {[%emt 0:03:30]} Rxh3 {[%emt 0:00:32]} 32. Be6 {[%emt 0:00:44]} Rh5 {[%emt 0:00:26]} 33. b5 {[%emt 0:00:44]} Qh6 {[%emt 0:00:27]} 34. Kf1 {[%emt 0:00:32]} f3 {[%emt 0:00:37]} 35. gxf3 {[%emt 0:02:23]} Rh1+ {[%emt 0:00:24]} 36. Ke2 {[%emt 0:00:07]} Rc7 {[%emt 0:00:37]} 37. bxc6 {[%emt 0:00:35]} Bxc6 {[%emt 0:00:05]} 38. Nd6 {[%emt 0:01:11]} Rh2 {[%emt 0:00:53]} 39. Nd3 {[%emt 0:00:19][%cal Be1d3,Bd3e5,Be5d7][%mdl 32]} Be7 {[%emt 0:00:30]} 40. Nf5 {[%emt 0:00:51]} Qh5 {[%emt 0:00:25]} 41. Bd5 {[%emt 0:00:43]} Bg5 {[%emt 0:00:35]} 42. Bxc6 {[%emt 0:04:49]} Qg6 {[%emt 0:00:06]} 43. Nxe5 {[%emt 0:04:06]} Qf6 {[%emt 0:00:56]} 44. Qg8+ {[%emt 0:01:14]} Rc8 {[%emt 0:00:10]} 45. Nd7+ {[%emt 0:00:34]} 1-0

[Event "12th Tamil Nadu Circuit-IM 2024"]
[Site "Chennai"]
[Date "2024.01.10"]
[Round "3.5"]
[White "Tologon tegin, Semetei"]
[Black "Gochelashvili, David"]
[Result "1-0"]
[ECO "A48"]
[WhiteElo "2384"]
[BlackElo "2287"]
[Annotator "RC"]
[PlyCount "77"]
[EventDate "2024.01.09"]
[EventType "tourn"]
[EventCountry "IND"]
[SourceTitle "playchess.com"]
[Source "ChessBase"]
[SourceQuality "1"]
[TimeControl "5400+30"]

1. d4 Nf6 2. Nf3 g6 3. Nbd2 c5 4. dxc5 Qa5 5. a3 Qxc5 6. b4 Qb6 7. Bb2 Bg7 8. e3 O-O 9. c4 a5 10. c5 Qc7 11. b5 b6 12. cxb6 Qxb6 13. Bd4 Qb7 14. Nc4 d6 15. a4 Bf5 16. Be2 Nbd7 17. O-O Rfc8 18. Rc1 Nc5 19. Bc3 Be6 20. Nd4 Bd5 21. Nxa5 Rxa5 22. Bxa5 Bxg2 23. Bf3 Bxf3 24. Qxf3 Nfe4 25. Bb4 Ra8 26. a5 {[%emt 0:03:56]} Bxd4 {[%emt 0:02:50]} 27. exd4 {[%emt 0:00:07]} Ne6 {[%emt 0:00:01]} 28. Qe3 {[%emt 0:07:23]} N4g5 {[%emt 0:01:47]} 29. f4 {[%emt 0:02:05]} Ne4 {[%emt 0:00:31]} 30. b6 {[%emt 0:02:17]} f5 {[%emt 0:00:17]} 31. Qb3 {[%emt 0:04:33]} Kf7 {[%emt 0:00:37]} 32. Rc7 {[%emt 0:01:14]} Qa6 {[%emt 0:00:10]} 33. Qc4 {[%emt 0:00:57]} Qxc4 {[%emt 0:00:51]} 34. Rxc4 {[%emt 0:00:02]} d5 {[%emt 0:00:04]} 35. Rc6 {[%emt 0:00:24]} Nxd4 {[%emt 0:00:28]} 36. Rc7 {[%emt 0:00:06]} Nb5 {[%emt 0:00:11]} 37. Rxe7+ {[%emt 0:00:11]} Kf6 {[%emt 0:00:05]} 38. Rc1 {[%emt 0:00:54]} Nec3 {[%emt 0:00:17]} 39. Rxc3 {[%emt 0:01:10]} 1-0

[Event "12th Tamil Nadu Circuit-IM 2024"]
[Site "Chennai"]
[Date "2024.01.11"]
[Round "4.1"]
[White "Md Imran"]
[Black "Gochelashvili, David"]
[Result "0-1"]
[ECO "A40"]
[WhiteElo "2222"]
[BlackElo "2287"]
[Annotator "RC"]
[PlyCount "58"]
[EventDate "2024.01.09"]
[EventType "tourn"]
[EventCountry "IND"]
[SourceTitle "playchess.com"]
[Source "ChessBase"]
[SourceQuality "1"]
[TimeControl "5400+30"]

1. d4 {[%emt 0:01:59]} g6 {[%emt 0:00:20]} 2. Nf3 {[%emt 0:01:33]} Bg7 {[%emt 0:00:07]} 3. Bf4 {[%emt 0:00:05]} c5 {[%emt 0:07:30]} 4. Be5 {[%emt 0:01:33]} f6 {[%emt 0:10:41]} 5. Bg3 {[%emt 0:00:49]} d5 {[%emt 0:05:50]} 6. dxc5 {[%emt 0:03:10]} Nc6 {[%emt 0:08:04]} 7. Nbd2 {[%emt 0:00:24]} f5 {[%emt 0:05:29]} 8. c3 {[%emt 0:00:13]} e5 {[%emt 0:00:07]} 9. e3 {[%emt 0:00:24]} Nge7 {[%emt 0:12:12]} 10. Bb5 {[%emt 0:02:39]} O-O {[%emt 0:02:44]} 11. O-O {[%emt 0:00:07]} h6 {[%emt 0:01:45]} 12. h4 {[%emt 0:06:31]} a6 {[%emt 0:02:08]} 13. Ba4 {[%emt 0:01:04]} Be6 {[%emt 0:17:54]} 14. Qb3 {[%emt 0:00:31]} b5 {[%emt 0:03:17]} 15. cxb6 {[%emt 0:00:13]} Rb8 {[%emt 0:00:01]} 16. Rad1 {[%emt 0:00:30]} Rxb6 {[%emt 0:00:58]} 17. Qa3 {[%emt 0:00:05]} e4 {[%emt 0:09:21]} 18. Nd4 {[%emt 0:01:06]} Nxd4 {[%emt 0:00:09]} 19. cxd4 {[%emt 0:00:03]} f4 {[%emt 0:00:05]} 20. Bxf4 {[%emt 0:01:45]} Nf5 {[%emt 0:04:12]} 21. g3 {[%emt 0:04:09]} Nxh4 {[%emt 0:00:05]} 22. Qc5 {[%emt 0:02:29]} Rxb2 {[%emt 0:04:02]} 23. gxh4 {[%emt 0:01:21]} Rxf4 {[%emt 0:00:04]} 24. exf4 {[%emt 0:00:04]} Qxh4 {[%emt 0:00:03]} 25. Nxe4 {[%emt 0:06:50]} dxe4 {[%emt 0:00:21]} 26. Qc3 {[%emt 0:00:10]} e3 {[%emt 0:01:49]} 27. Qxb2 {[%emt 0:01:52]} Qg4+ {[%emt 0:00:15]} 28. Kh1 {[%emt 0:00:15]} Qf3+ {[%emt 0:00:09]} 29. Kg1 {[%emt 0:00:30]} Bd5 {[%emt 0:00:23]} 0-1

[Event "12th Tamil Nadu Circuit-IM 2024"]
[Site "Chennai"]
[Date "2024.01.11"]
[Round "4.2"]
[White "Raghav V"]
[Black "Tologon tegin, Semetei"]
[Result "1/2-1/2"]
[ECO "B33"]
[WhiteElo "2150"]
[BlackElo "2384"]
[Annotator "RC"]
[PlyCount "108"]
[EventDate "2024.01.09"]
[EventType "tourn"]
[EventCountry "IND"]
[SourceTitle "playchess.com"]
[Source "ChessBase"]
[SourceQuality "1"]
[TimeControl "5400+30"]

1. e4 {[%emt 0:00:03]} c5 {[%emt 0:00:04]} 2. Nf3 {[%emt 0:00:07]} Nc6 {[%emt 0:00:04]} 3. d4 {[%emt 0:00:05]} cxd4 {[%emt 0:00:03]} 4. Nxd4 {[%emt 0:00:05]} Qb6 {[%emt 0:00:03]} 5. Nb3 {[%emt 0:00:50]} Nf6 {[%emt 0:00:10]} 6. Nc3 {[%emt 0:00:40]} e6 {[%emt 0:00:16]} 7. a3 {[%emt 0:02:47]} Qc7 {[%emt 0:01:11]} 8. g3 {[%emt 0:03:35]} a6 {[%emt 0:00:30]} 9. Bg2 {[%emt 0:01:22]} Be7 {[%emt 0:00:11]} 10. O-O {[%emt 0:06:20]} d6 {[%emt 0:01:23]} 11. Qe2 {[%emt 0:03:31]} O-O {[%emt 0:00:48]} 12. f4 {[%emt 0:00:15]} b5 {[%emt 0:00:31]} 13. Be3 {[%emt 0:00:51]} Bb7 {[%emt 0:00:19]} 14. h3 {[%emt 0:11:00]} Nd7 {[%emt 0:05:39]} 15. Qf2 {[%emt 0:03:15]} Na5 {[%emt 0:44:17]} 16. Nxa5 {[%emt 0:16:22]} Qxa5 {[%emt 0:00:29]} 17. Rfd1 {[%emt 0:04:02]} Qc7 {[%emt 0:02:54]} 18. Rd2 {[%emt 0:02:41]} Rab8 {[%emt 0:00:51]} 19. Rad1 {[%emt 0:02:00]} Ba8 {[%emt 0:02:22]} 20. Ne2 {[%emt 0:11:08]} Nf6 {[%emt 0:24:35]} 21. Nc3 {[%emt 0:00:55]} b4 {[%emt 0:00:14]} 22. axb4 {[%emt 0:07:14]} Rxb4 {[%emt 0:00:10]} 23. Bd4 {[%emt 0:00:46]} Rc8 {[%emt 0:13:21]} 24. e5 {[%emt 0:05:48]} Ne8 {[%emt 0:00:01]} 25. exd6 {[%emt 0:02:32]} Bxd6 {[%emt 0:00:06]} 26. Bxa8 {[%emt 0:00:50]} Rxa8 {[%emt 0:00:03]} 27. Ne4 {[%emt 0:01:22]} Bf8 {[%emt 0:00:33]} 28. c3 {[%emt 0:01:28]} Rb5 {[%emt 0:00:02]} 29. Qf3 {[%emt 0:01:54]} Rc8 {[%emt 0:02:19]} 30. b4 {[%emt 0:03:14]} a5 {[%emt 0:00:03]} 31. Bc5 {[%emt 0:02:41]} axb4 {[%emt 0:00:06]} 32. cxb4 {[%emt 0:01:18]} Bxc5+ {[%emt 0:00:47]} 33. bxc5 {[%emt 0:01:20]} f5 {[%emt 0:00:03]} 34. Ng5 {[%emt 0:04:00]} Qxc5+ {[%emt 0:00:04]} 35. Qf2 {[%emt 0:00:08]} Qxf2+ {[%emt 0:02:02]} 36. Kxf2 {[%emt 0:00:12]} h6 {[%emt 0:00:30]} 37. Nxe6 {[%emt 0:00:36]} Nf6 {[%emt 0:00:02]} 38. Rd8+ {[%emt 0:01:15]} Rxd8 {[%emt 0:00:01]} 39. Rxd8+ {[%emt 0:00:18]} Kf7 {[%emt 0:00:03]} 40. Nd4 {[%emt 0:00:30]} Rb2+ {[%emt 0:00:03]} 41. Ke3 {[%emt 0:00:57]} g6 {[%emt 0:00:15]} 42. Ra8 {[%emt 0:00:31]} Nd5+ {[%emt 0:02:03]} 43. Kf3 {[%emt 0:00:22]} Rd2 {[%emt 0:00:01]} 44. Nc6 {[%emt 0:00:37]} Rd3+ {[%emt 0:01:27]} 45. Kf2 {[%emt 0:00:09]} Rd2+ {[%emt 0:00:04]} 46. Kf3 {[%emt 0:00:14]} g5 {[%emt 0:00:54]} 47. Ne5+ {[%emt 0:00:32]} Ke7 {[%emt 0:00:04]} 48. Ra7+ {[%emt 0:00:37]} Ke8 {[%emt 0:00:05]} 49. Ra8+ {[%emt 0:00:33]} Ke7 {[%emt 0:00:04]} 50. Ra7+ {[%emt 0:00:03]} Ke8 {[%emt 0:00:52]} 51. fxg5 {[%emt 0:00:56]} hxg5 {[%emt 0:00:09]} 52. Rg7 {[%emt 0:00:13]} Rb2 {[%emt 0:02:00]} 53. Rxg5 {[%emt 0:00:35]} Rb3+ {[%emt 0:00:00]} 54. Kf2 {[%emt 0:00:25]} f4 {[%emt 0:00:23]} 1/2-1/2

[Event "12th Tamil Nadu Circuit-IM 2024"]
[Site "Chennai"]
[Date "2024.01.11"]
[Round "4.3"]
[White "Mamombe, Kudzanai"]
[Black "Touzane, Olivier"]
[Result "0-1"]
[ECO "A08"]
[WhiteElo "1797"]
[BlackElo "2242"]
[Annotator "RC"]
[PlyCount "101"]
[EventDate "2024.01.09"]
[EventType "tourn"]
[EventCountry "IND"]
[SourceTitle "playchess.com"]
[Source "ChessBase"]
[SourceQuality "1"]
[TimeControl "5400+30"]

1. Nf3 {[%emt 0:00:22]} c5 {[%emt 0:00:13]} 2. g3 {[%emt 0:00:30]} Nc6 {[%emt 0:00:45]} 3. Bg2 {[%emt 0:00:03]} g6 {[%emt 0:00:06]} 4. O-O {[%emt 0:00:14]} Bg7 {[%emt 0:00:07]} 5. d3 {[%emt 0:00:49]} e6 {[%emt 0:01:37]} 6. e4 {[%emt 0:00:22]} Nge7 {[%emt 0:00:14]} 7. c3 {[%emt 0:00:43]} d5 {[%emt 0:00:28]} 8. Nbd2 {[%emt 0:00:04]} b6 {[%emt 0:00:39]} 9. Re1 {[%emt 0:00:10]} Ba6 {[%emt 0:00:53]} 10. Nf1 {[%emt 0:14:15]} dxe4 {[%emt 0:09:18]} 11. dxe4 {[%emt 0:03:18]} Qc7 {[%emt 0:02:05]} 12. Bf4 {[%emt 0:01:27]} e5 {[%emt 0:03:07]} 13. Bg5 {[%emt 0:03:23]} Rd8 {[%emt 0:00:19]} 14. Qa4 {[%emt 0:00:46]} Bd3 {[%emt 0:00:42]} 15. Bxe7 {[%emt 0:04:01]} Kxe7 {[%emt 0:00:19]} 16. Rad1 {[%emt 0:00:50]} b5 {[%emt 0:13:19]} 17. Qa3 {[%emt 0:01:40]} Na5 {[%emt 0:00:15]} 18. b3 {[%emt 0:00:49]} Rd6 {[%emt 0:15:08]} 19. Qc1 {[%emt 0:04:24]} Rhd8 {[%emt 0:04:00]} 20. h4 {[%emt 0:13:12]} f6 {[%emt 0:04:45]} 21. N3h2 {[%emt 0:01:23]} c4 {[%emt 0:03:49]} 22. b4 {[%emt 0:00:35]} Nc6 {[%emt 0:00:07]} 23. Ne3 {[%emt 0:01:13]} Kf7 {[%emt 0:00:58]} 24. Rd2 {[%emt 0:04:36]} a5 {[%emt 0:00:22]} 25. a3 {[%emt 0:00:02]} Qa7 {[%emt 0:01:01]} 26. Qb2 {[%emt 0:09:27]} axb4 {[%emt 0:02:50]} 27. axb4 {[%emt 0:00:04]} Ra8 {[%emt 0:00:20]} 28. Red1 {[%emt 0:08:42]} h5 {[%emt 0:02:12]} 29. Bf1 {[%emt 0:02:30]} Bh6 {[%emt 0:01:44]} 30. Bxd3 {[%emt 0:01:35]} cxd3 {[%emt 0:04:26]} 31. Rxd3 {[%emt 0:00:33]} Rxd3 {[%emt 0:01:58]} 32. Rxd3 {[%emt 0:00:05]} Bxe3 {[%emt 0:02:06]} 33. Rxe3 {[%emt 0:00:09]} Qd7 {[%emt 0:00:57]} 34. Nf1 {[%emt 0:01:08]} Nd8 {[%emt 0:01:44]} 35. Qe2 {[%emt 0:02:39]} Nb7 {[%emt 0:08:30]} 36. Rd3 {[%emt 0:00:55]} Nd6 {[%emt 0:01:46]} 37. Qd2 {[%emt 0:02:57]} Ke6 {[%emt 0:04:10]} 38. Ne3 {[%emt 0:03:24]} Qc6 {[%emt 0:01:31]} 39. f3 {[%emt 0:01:12]} f5 {[%emt 0:00:17]} 40. exf5+ {[%emt 0:00:51]} gxf5 {[%emt 0:00:58]} 41. Nd5 {[%emt 0:01:49]} f4 {[%emt 0:02:36]} 42. gxf4 {[%emt 0:02:15]} Rg8+ {[%emt 0:01:29]} 43. Kh2 {[%emt 0:01:57]} Nc4 {[%emt 0:00:03]} 44. f5+ {[%emt 0:01:28]} Kf7 {[%emt 0:00:48]} 45. Qf2 {[%emt 0:01:36]} Qa8 {[%emt 0:02:02]} 46. Ne3 {[%emt 0:03:17]} Qa7 {[%emt 0:03:24]} 47. Ng4 {[%emt 0:02:35]} Qxf2+ {[%emt 0:01:15]} 48. Nxf2 {[%emt 0:00:02]} Kf6 {[%emt 0:00:15]} 49. Rd5 {[%emt 0:00:32]} Ne3 {[%emt 0:00:38]} 50. Ne4+ {[%emt 0:00:27]} Kxf5 {[%emt 0:00:31]} 51. Ng5 {[%emt 0:02:33]} 0-1

[Event "12th Tamil Nadu Circuit-IM 2024"]
[Site "Chennai"]
[Date "2024.01.11"]
[Round "4.4"]
[White "Prasannaa.s"]
[Black "Buscara, Sevan"]
[Result "1-0"]
[ECO "B06"]
[WhiteElo "2213"]
[BlackElo "2359"]
[Annotator "RC"]
[PlyCount "109"]
[EventDate "2024.01.09"]
[EventType "tourn"]
[EventCountry "IND"]
[SourceTitle "playchess.com"]
[Source "ChessBase"]
[SourceQuality "1"]
[TimeControl "5400+30"]

1. e4 {[%emt 0:03:48]} g6 {[%emt 0:00:07]} 2. d4 {[%emt 0:00:34]} Bg7 {[%emt 0:00:05]} 3. Nc3 {[%emt 0:00:03]} d6 {[%emt 0:00:07]} 4. Nf3 {[%emt 0:00:05]} a6 {[%emt 0:00:04]} 5. Be3 {[%emt 0:03:16]} b5 {[%emt 0:00:10]} 6. Bd3 {[%emt 0:02:31]} Bb7 {[%emt 0:00:18]} 7. Qd2 {[%emt 0:01:11]} Nd7 {[%emt 0:00:14]} 8. a4 {[%emt 0:01:23]} c6 {[%emt 0:00:40]} 9. O-O {[%emt 0:07:20]} Qb8 {[%emt 0:21:00]} 10. Rfe1 {[%emt 0:07:33]} e5 {[%emt 0:01:58]} 11. d5 {[%emt 0:04:37]} b4 {[%emt 0:02:45]} 12. dxc6 {[%emt 0:04:26]} Bxc6 {[%emt 0:00:17]} 13. Nd5 {[%emt 0:05:37]} Bxd5 {[%emt 0:00:46]} 14. exd5 {[%emt 0:00:03]} Ngf6 {[%emt 0:04:32]} 15. a5 {[%emt 0:01:46]} O-O {[%emt 0:05:04]} 16. Ra4 {[%emt 0:01:51]} Nxd5 {[%emt 0:04:55]} 17. Be4 {[%emt 0:02:12]} Qb5 {[%emt 0:16:22]} 18. Bxd5 {[%emt 0:00:51]} Qxa4 {[%emt 0:00:07]} 19. Bxa8 {[%emt 0:00:12]} Rxa8 {[%emt 0:00:05]} 20. Qxd6 {[%emt 0:00:10]} Qb5 {[%emt 0:11:44]} 21. Rd1 {[%emt 0:08:08]} Nf8 {[%emt 0:00:40]} 22. Rd5 {[%emt 0:12:52]} Qa4 {[%emt 0:01:19]} 23. h3 {[%emt 0:00:40]} Qa1+ {[%emt 0:01:30]} 24. Kh2 {[%emt 0:00:09]} Qxb2 {[%emt 0:01:05]} 25. Qc6 {[%emt 0:07:51]} Rb8 {[%emt 0:01:32]} 26. Ba7 {[%emt 0:02:26]} b3 {[%emt 0:00:57]} 27. Bxb8 {[%emt 0:08:30]} bxc2 {[%emt 0:00:35]} 28. Rc5 {[%emt 0:00:04]} Qxb8 {[%emt 0:00:15]} 29. Qb6 {[%emt 0:00:55]} Qe8 {[%emt 0:00:47]} 30. Rxc2 {[%emt 0:00:04]} Qa4 {[%emt 0:03:10]} 31. Rc8 {[%emt 0:03:44]} e4 {[%emt 0:01:40]} 32. Nd2 {[%emt 0:01:10]} Bh6 {[%emt 0:02:32]} 33. Nf1 {[%emt 0:01:02]} Qa2 {[%emt 0:01:09]} 34. Kg1 {[%emt 0:00:50]} Qa1 {[%emt 0:00:29]} 35. Re8 {[%emt 0:02:56]} Qe1 {[%emt 0:03:43]} 36. Qxa6 {[%emt 0:03:34]} Bd2 {[%emt 0:00:48]} 37. Qa8 {[%emt 0:01:01]} Bb4 {[%emt 0:00:10]} 38. Rxe4 {[%emt 0:00:45]} Qc3 {[%emt 0:00:03]} 39. Rxb4 {[%emt 0:01:43]} Qxb4 {[%emt 0:00:03]} 40. a6 {[%emt 0:00:06]} Kg7 {[%emt 0:00:03]} 41. a7 {[%emt 0:00:57]} Nd7 {[%emt 0:00:03]} 42. Qc6 {[%emt 0:00:22]} Nb6 {[%emt 0:00:06]} 43. a8=Q {[%emt 0:00:31]} Nxa8 {[%emt 0:00:02]} 44. Qxa8 {[%emt 0:00:02]} Qb1 {[%emt 0:00:09]} 45. Qd5 {[%emt 0:00:10]} h5 {[%emt 0:00:06]} 46. Qd4+ {[%emt 0:00:21]} Kg8 {[%emt 0:00:04]} 47. g3 {[%emt 0:00:33]} Qc1 {[%emt 0:00:04]} 48. Qe4 {[%emt 0:00:18]} Qb2 {[%emt 0:00:11]} 49. Kg2 {[%emt 0:00:11]} Kh7 {[%emt 0:00:16]} 50. Nh2 {[%emt 0:00:09]} f5 {[%emt 0:00:15]} 51. Qd5 {[%emt 0:00:22]} f4 {[%emt 0:00:15]} 52. gxf4 {[%emt 0:00:09]} h4 {[%emt 0:00:13]} 53. Nf3 {[%emt 0:00:18]} Qc2 {[%emt 0:01:00]} 54. Qf7+ {[%emt 0:00:45]} Kh8 {[%emt 0:00:10]} 55. Qf8+ {[%emt 0:00:06]} 1-0